bitfinex-derivatives/quotes_SOLF0:USTF0_20260117
["timestamp","ask_amount","ask_price","bid_price","bid_amount"]
[1768661735762,3.09427743,144.0,143.93,391.28014173]
[1768661736061,3.09427743,144.0,143.94,3.1709032]
[1768661738963,3.09427743,144.0,143.94,9.4256032]
[1768661745372,3.09427743,144.0,143.94,265.7909032]
[1768661745572,3.09427743,143.99,143.92,272.0462032]
[1768661746972,9.34687743,143.99,143.92,272.0462032]
[1768661748871,11.07663232,143.99,143.92,272.0462032]
[1768661750275,11.07663232,143.99,143.92,9.4262032]
[1768661750476,11.07663232,143.99,143.92,272.0462032]
[1768661750775,11.07663232,143.99,143.92,9.4262032]
[1768661750975,11.07663232,143.99,143.92,70.3662032]
[1768661752877,11.07663232,143.99,143.92,64.1109032]
[1768661753786,3.27679933,143.98,143.92,64.1109032]
[1768661753986,3.27679933,143.98,143.93,3.27168469]
[1768661758890,9.52989933,143.98,143.93,3.27168469]
[1768661760489,6.2535,143.97,143.91,3.27168469]
[1768661761491,9.53029933,143.97,143.91,3.27168469]
[1768661764789,3.27679933,143.96,143.89,5.00222865]
[1768661767095,3.27679933,143.95,143.89,3.27168469]
[1768661771896,3.27679933,143.94,143.87,5.00222865]
[1768661772196,3.27679933,143.94,143.87,3.27168469]
[1768661772394,1.73054396,143.95,143.87,3.27168469]
[1768661772395,3.27679933,143.93,143.87,3.27168469]
[1768661773399,3.27679933,143.93,143.85,3.27168469]
[1768661773792,3.27679933,143.92,143.85,3.27168469]
[1768661775296,3.27679933,143.9,143.82,3.27168469]
[1768661775599,3.27679933,143.9,143.83,1.73054396]
[1768661775902,3.27679933,143.9,143.84,3.27168469]
[1768661786309,3.20187361,143.92,143.84,3.27168469]
[1768661788201,1.73054396,143.91,143.84,3.27168469]
[1768661788506,4.93241757,143.91,143.84,3.27168469]
[1768661791016,3.20187361,143.9,143.84,3.27168469]
[1768661813835,3.20187361,143.9,143.85,6.2586]
[1768661814733,1.73054396,143.91,143.85,9.44309837]
[1768661814932,1.73054396,143.91,143.86,3.18449837]
[1768661815840,3.12348362,143.92,143.86,9.44249837]
[1768661816039,3.12348362,143.92,143.87,3.18449837]
[1768661819147,3.12348362,143.92,143.86,6.258]
[1768661819442,4.85568443,143.92,143.86,9.44249837]
[1768661819641,3.12348362,143.91,143.86,9.44249837]
[1768661820037,3.12348362,143.91,143.86,3.18449837]
[1768661820346,4.85568443,143.9,143.84,9.44329837]
[1768661820841,3.12348362,143.9,143.84,9.44329837]
[1768661821040,4.85568443,143.9,143.84,3.18449837]
[1768661828446,3.12348362,143.89,143.84,3.18449837]
[1768661832862,1.73220081,143.9,143.84,3.18449837]
[1768661835668,3.12348362,143.91,143.84,3.18449837]
[1768661835866,4.85568443,143.91,143.84,3.18449837]
[1768661839875,3.12348362,143.91,143.84,3.18449837]
[1768661841773,3.12348362,143.91,143.85,6.2586]
[1768661842580,3.12348362,143.91,143.79,17.30878565]
[1768661842581,3.12348362,143.91,143.86,9.30785104]
[1768661846078,1.73220081,143.92,143.86,9.30785104]
[1768661846580,4.87945471,143.92,143.86,9.30785104]
[1768661847773,3.1472539,143.92,143.86,9.30785104]
[1768661858994,1.73220081,143.91,143.86,9.30785104]
[1768661866497,3.1472539,143.92,143.86,9.30785104]
[1768661866794,1.73220081,143.91,143.86,9.30785104]
[1768661874507,3.04718628,143.96,143.89,6.2566]
[1768661874713,4.77938709,143.94,143.88,3.05652731]
[1768661874904,1.73220081,143.92,143.88,3.05652731]
[1768661875100,4.77938709,143.92,143.86,9.31442731]
[1768661875312,1.73220081,143.9,143.86,9.31442731]
[1768661878216,3.04718628,143.92,143.86,9.31442731]
[1768661878514,1.73220081,143.91,143.86,9.31442731]
[1768661879317,1.73239481,143.91,143.86,9.31442731]
[1768661882722,1.73239481,143.91,143.87,6.2577]
[1768661883118,3.04718628,143.94,143.87,9.31422731]
[1768661883419,1.73239481,143.92,143.87,9.31422731]
[1768661891626,1.73239481,143.92,143.88,9.31382731]
[1768661891822,3.04718628,143.93,143.88,3.05652731]
[1768661892028,1.73239481,143.94,143.88,3.05652731]
[1768661892829,1.73239481,143.94,143.89,6.2568]
[1768661893034,3.04718628,143.93,143.86,3.05652731]
[1768661893329,4.77958109,143.92,143.86,3.05652731]
[1768661899328,4.77958109,143.92,143.82,99.10639481]
[1768661899329,3.04718628,143.91,143.84,3.05652731]
[1768661900933,3.04718628,143.9,143.84,3.05652731]
[1768661906033,7.98869481,143.91,143.84,3.05652731]
[1768661906830,11.20324371,143.91,143.84,3.05652731]
[1768661910335,3.2145489,143.9,143.84,3.05652731]
[1768661911033,9.4711489,143.9,143.84,3.05652731]
[1768661918031,3.2145489,143.9,143.84,3.05652731]
[1768661930951,9.4711489,143.9,143.84,3.05652731]
[1768661935855,3.2145489,143.9,143.84,3.05652731]
[1768661936061,6.257,143.89,143.84,3.05652731]
[1768661944168,9.3620271,143.89,143.84,3.05652731]
[1768661944767,6.257,143.89,143.84,3.05652731]
[1768661945061,9.3612271,143.91,143.84,3.05652731]
[1768661946672,3.1050271,143.89,143.84,3.05652731]
[1768661947765,9.3620271,143.89,143.84,3.05652731]
[1768661951972,9.3625271,143.88,143.82,3.25771874]
[1768661952275,3.1050271,143.87,143.82,3.25771874]
[1768661953677,6.2575,143.88,143.82,3.25771874]
[1768661953987,3.1050271,143.89,143.82,3.25771874]
[1768661955184,3.1050271,143.89,143.83,3.25771874]
[1768661956578,4.83753546,143.91,143.83,3.25771874]
[1768661956778,4.83753546,143.91,143.85,3.25771874]
[1768661957575,6.2548,143.94,143.85,3.25771874]
[1768661957776,5.6661504,143.93,143.85,3.25771874]
[1768661957985,1.73250836,143.93,143.85,3.25771874]
[1768661958174,4.83753546,143.93,143.85,3.25771874]
[1768661958782,3.1050271,143.92,143.85,3.25771874]
[1768661964286,2.99924391,143.94,143.88,4.9320193]
[1768661964483,2.99924391,143.94,143.88,3.19951094]
[1768661965789,2.99924391,143.94,143.89,6.2567]
[1768661966083,2.99924391,143.94,143.88,3.19951094]
[1768661968782,2.99924391,143.94,143.88,9.45651094]
[1768661970678,2.99924391,143.96,143.89,9.45631094]
[1768661972487,3.17017364,143.94,143.88,3.19951094]
[1768661973993,3.17017364,143.97,143.89,3.26460552]
[1768661974387,1.73250836,143.96,143.89,3.26460552]
[1768661974690,3.17017364,143.95,143.89,3.26460552]
[1768661974890,3.17017364,143.95,143.89,9.52140552]
[1768661975390,3.17017364,143.95,143.89,3.26460552]
[1768661981999,3.17017364,143.95,143.88,6.2572]
[1768661982193,3.17017364,143.94,143.88,9.52180552]
[1768661984793,3.17017364,143.94,143.89,9.52140552]
[1768661987303,3.17017364,143.97,143.9,9.52080552]
[1768661989004,3.17017364,143.95,143.88,9.52170552]
[1768661989904,3.17017364,143.95,143.89,3.26460552]
[1768661990606,97.2575,144.0,143.89,3.26460552]
[1768661990607,3.17017364,144.0,143.89,3.26460552]
[1768661990806,3.17017364,144.0,143.91,3.26460552]
[1768661991008,1.73250836,143.99,143.91,3.26460552]
[1768661991197,4.902682,143.99,143.91,3.26460552]
[1768661991699,1.73250836,143.97,143.91,3.26460552]
[1768661991898,4.93223773,143.97,143.91,3.26460552]
[1768661992303,3.19972937,143.97,143.91,3.26460552]
[1768661995403,3.19972937,143.96,143.88,9.54359729]
[1768661995610,4.93223773,143.96,143.89,3.28659729]
[1768661996309,3.19972937,143.96,143.89,9.54339729]
[1768661997614,3.19972937,143.98,143.91,3.28659729]
[1768661998913,3.19972937,143.98,143.91,9.54249729]
[1768661999305,4.93064272,143.98,143.91,9.54249729]
[1768661999504,11.18374272,143.98,143.91,3.28659729]
[1768661999813,3.19972937,143.97,143.91,3.28659729]
[1768662000416,1.73091335,143.96,143.89,9.54319729]
[1768662000620,4.93064272,143.96,143.9,3.28659729]
[1768662001116,3.19972937,143.96,143.9,3.28659729]
[1768662002024,3.19972937,143.95,143.89,6.2566]
[1768662002211,3.19972937,143.95,143.88,3.28659729]
[1768662003921,3.19972937,143.95,143.88,9.54379729]
[1768662004427,3.19972937,143.95,143.89,3.28659729]
[1768662007821,3.19972937,143.97,143.89,3.28659729]
[1768662008921,3.19972937,143.97,143.9,3.28659729]
[1768662009923,9.45322937,143.97,143.9,3.28659729]
[1768662010125,3.19972937,143.96,143.9,3.28659729]
[1768662011126,9.45372937,143.96,143.9,3.28659729]
[1768662012829,11.18464272,143.96,143.9,3.28659729]
[1768662027437,2.98557308,143.95,143.9,3.28659729]
[1768662027636,9.23997308,143.95,143.88,3.01992511]
[1768662030342,5.6836882,143.94,143.88,3.01992511]
[1768662030537,9.23997308,143.95,143.88,3.01992511]
[1768662030839,5.6836882,143.94,143.88,3.01992511]
[1768662031040,9.23997308,143.95,143.88,3.01992511]
[1768662031339,5.6836882,143.94,143.88,3.01992511]
[1768662031540,9.23997308,143.95,143.88,3.01992511]
[1768662031728,5.68367702,143.94,143.88,3.01992511]
[1768662031936,9.23997308,143.95,143.88,3.01992511]
[1768662032132,5.68367702,143.94,143.88,3.01992511]
[1768662032332,9.23997308,143.95,143.88,3.01992511]
[1768662032543,5.68368235,143.94,143.88,3.01992511]
[1768662032847,9.23997308,143.95,143.88,3.01992511]
[1768662033145,5.68368235,143.94,143.88,3.01992511]
[1768662033335,9.23997308,143.95,143.88,3.01992511]
[1768662033536,5.68369752,143.94,143.88,3.01992511]
[1768662033729,9.23997308,143.95,143.88,3.01992511]
[1768662033939,5.68369752,143.94,143.88,3.01992511]
[1768662034236,9.23997308,143.95,143.88,3.01992511]
[1768662034437,5.68371153,143.94,143.88,3.01992511]
[1768662034736,9.23997308,143.95,143.88,3.01992511]
[1768662034934,5.68371153,143.94,143.88,9.27712511]
[1768662035236,9.23997308,143.95,143.89,3.02187396]
[1768662035442,5.67649862,143.94,143.89,3.02187396]
[1768662035742,3.07274031,143.94,143.89,3.02187396]
[1768662035942,5.67657272,143.93,143.89,3.02187396]
[1768662036142,3.07274031,143.94,143.89,3.02187396]
[1768662036442,5.67656979,143.93,143.89,3.02187396]
[1768662036639,3.07274031,143.94,143.89,3.02187396]
[1768662036942,5.67768972,143.93,143.89,3.02187396]
[1768662037140,3.07274031,143.94,143.89,3.02187396]
[1768662037443,5.67769937,143.93,143.89,3.02187396]
[1768662037645,3.07274031,143.94,143.89,3.02187396]
[1768662037842,8.75088235,143.93,143.86,11.01088731]
[1768662038145,5.67838346,143.92,143.87,3.02187396]
[1768662038340,3.07274031,143.93,143.86,6.2581]
[1768662038543,8.75122731,143.92,143.86,3.02187396]
[1768662038841,5.678487,143.91,143.86,3.02187396]
[1768662039740,3.07274031,143.92,143.86,3.02187396]
[1768662039945,5.67818952,143.91,143.86,3.02187396]
[1768662040144,3.07274031,143.92,143.86,3.02187396]
[1768662040346,5.67818952,143.91,143.86,3.02187396]
[1768662040545,3.07274031,143.92,143.86,3.02187396]
[1768662040748,8.75024052,143.91,143.86,3.02187396]
[1768662040945,5.67696739,143.9,143.84,101.96031302]
[1768662041140,3.07274031,143.91,143.84,101.96031302]
[1768662041339,5.67679538,143.9,143.84,101.96031302]
[1768662041641,3.07274031,143.91,143.84,101.96031302]
[1768662041843,3.07274031,143.89,143.84,3.02187396]
[1768662042236,3.07274031,143.91,143.84,3.02187396]
[1768662042439,5.67302097,143.9,143.84,3.02187396]
[1768662042646,3.07274031,143.91,143.84,3.02187396]
[1768662042848,5.67303911,143.9,143.84,3.02187396]
[1768662043050,3.07274031,143.91,143.84,3.02187396]
[1768662043251,5.67303911,143.9,143.84,3.02187396]
[1768662043548,3.07274031,143.91,143.84,3.02187396]
[1768662044051,3.07274031,143.93,143.85,3.02187396]
[1768662044357,5.67246429,143.92,143.85,3.02187396]
[1768662044646,3.07274031,143.93,143.85,3.02187396]
[1768662044946,5.67198144,143.92,143.86,9.27997396]
[1768662045157,3.07274031,143.93,143.86,9.27997396]
[1768662045348,5.67186332,143.92,143.86,9.27997396]
[1768662045548,3.07274031,143.93,143.86,9.27997396]
[1768662045854,5.67187509,143.92,143.86,9.27997396]
[1768662046150,5.67211426,143.91,143.86,9.27997396]
[1768662046351,3.07274031,143.93,143.86,9.27997396]
[1768662046544,5.67172879,143.92,143.86,9.27997396]
[1768662046746,3.07274031,143.93,143.86,9.27997396]
[1768662046948,5.67157737,143.92,143.86,9.27997396]
[1768662047146,5.67181654,143.91,143.86,9.27997396]
[1768662047347,3.07274031,143.93,143.87,3.02187396]
[1768662047649,5.67131467,143.92,143.87,3.02187396]
[1768662047849,3.07274031,143.93,143.87,3.02187396]
[1768662048148,5.67131636,143.92,143.87,3.02187396]
[1768662048350,3.07274031,143.93,143.87,3.02187396]
[1768662048648,5.67060874,143.92,143.87,3.02187396]
[1768662048952,3.07274031,143.93,143.87,3.02187396]
[1768662049254,5.67071088,143.92,143.87,3.02187396]
[1768662049554,3.07274031,143.93,143.87,3.02187396]
[1768662049854,5.670346,143.92,143.87,3.02187396]
[1768662050048,3.07274031,143.93,143.87,3.02187396]
[1768662050249,5.670346,143.92,143.87,3.02187396]
[1768662050449,3.07274031,143.93,143.87,3.02187396]
[1768662050655,5.67031343,143.92,143.87,3.02187396]
[1768662050849,3.07274031,143.93,143.87,3.02187396]
[1768662051154,5.67031343,143.92,143.87,3.02187396]
[1768662051358,3.07274031,143.93,143.87,3.02187396]
[1768662051562,5.67015802,143.92,143.87,3.02187396]
[1768662051747,3.07274031,143.93,143.87,3.02187396]
[1768662051947,5.67015802,143.92,143.87,3.02187396]
[1768662052153,3.07274031,143.93,143.87,3.02187396]
[1768662052355,5.67015802,143.92,143.87,3.02187396]
[1768662052555,3.07274031,143.93,143.87,3.02187396]
[1768662052751,5.67002866,143.92,143.87,3.02187396]
[1768662053058,3.07274031,143.93,143.87,3.02187396]
[1768662053258,5.67002866,143.92,143.87,3.02187396]
[1768662053550,3.07274031,143.93,143.87,3.02187396]
[1768662053760,5.66992922,143.92,143.87,3.02187396]
[1768662053957,3.07274031,143.93,143.87,3.02187396]
[1768662054157,5.66992922,143.92,143.87,3.02187396]
[1768662054359,3.07274031,143.93,143.87,3.02187396]
[1768662054551,5.67005417,143.92,143.87,3.02187396]
[1768662054752,3.07274031,143.93,143.87,3.02187396]
[1768662054952,5.67005417,143.92,143.87,3.02187396]
[1768662055145,3.07274031,143.93,143.87,3.02187396]
[1768662055350,5.67005417,143.92,143.87,3.02187396]
[1768662055550,3.07274031,143.93,143.87,3.02187396]
[1768662055752,5.67006095,143.92,143.87,3.02187396]
[1768662056057,3.07274031,143.93,143.87,3.02187396]
[1768662056258,5.67006095,143.92,143.87,3.02187396]
[1768662056445,3.07274031,143.93,143.87,3.02187396]
[1768662056650,5.67005962,143.92,143.87,3.02187396]
[1768662056950,3.07274031,143.93,143.87,3.02187396]
[1768662057146,5.67005962,143.92,143.87,3.02187396]
[1768662057454,3.07274031,143.93,143.87,3.02187396]
[1768662057650,5.67010265,143.92,143.87,3.02187396]
[1768662057846,3.07274031,143.93,143.87,3.02187396]
[1768662058048,5.67010265,143.92,143.87,3.02187396]
[1768662058258,3.07274031,143.93,143.87,3.02187396]
[1768662058458,5.67011122,143.92,143.87,3.02187396]
[1768662058660,3.07274031,143.93,143.87,3.02187396]
[1768662058961,5.67011123,143.92,143.87,3.02187396]
[1768662059162,3.07274031,143.93,143.87,3.02187396]
[1768662059363,5.67011123,143.92,143.87,3.02187396]
[1768662059554,3.07274031,143.93,143.87,3.02187396]
[1768662059854,5.67015379,143.92,143.87,3.02187396]
[1768662060053,3.07274031,143.93,143.87,3.02187396]
[1768662060250,5.67015379,143.92,143.87,3.02187396]
[1768662060455,3.07274031,143.93,143.87,3.02187396]
[1768662060654,5.67014248,143.92,143.87,3.02187396]
[1768662060858,3.07274031,143.93,143.87,3.02187396]
[1768662061058,5.67014248,143.92,143.87,3.02187396]
[1768662061258,3.07274031,143.93,143.87,3.02187396]
[1768662061464,5.67022371,143.92,143.87,3.02187396]
[1768662061662,4.80468096,143.93,143.87,3.02187396]
[1768662061854,3.02912858,143.91,143.85,3.31579597]
[1768662062055,4.76106923,143.91,143.85,3.31579597]
[1768662062255,3.02912858,143.9,143.85,3.31579597]
[1768662080580,3.02912858,143.89,143.84,6.2588]
[1768662081891,1.73194065,143.88,143.83,3.31579597]
[1768662082887,1.73194065,143.88,143.83,9.57519597]
[1768662084492,3.01601439,143.87,143.81,9.27321356]
[1768662091796,3.01601439,143.87,143.82,3.01311356]
[1768662092793,1.73194065,143.86,143.8,3.31602749]
[1768662092984,3.01601439,143.87,143.8,3.31602749]
[1768662093189,4.74795504,143.87,143.8,3.31602749]
[1768662093792,4.74795504,143.87,143.81,3.31602749]
[1768662099108,4.74795504,143.87,143.82,3.31602749]
[1768662105508,3.07775691,143.89,143.82,9.57582749]
[1768662105806,1.73194065,143.87,143.82,9.57582749]
[1768662107906,3.07775691,143.88,143.83,3.31602749]
[1768662107907,1.73194065,143.88,143.83,3.31602749]
[1768662108111,4.80969756,143.9,143.83,3.31602749]
[1768662108713,3.07775691,143.92,143.85,3.31602749]
[1768662109709,1.73194065,143.93,143.87,3.31602749]
[1768662109909,4.80969756,143.93,143.87,3.31602749]
[1768662111117,4.80969756,143.93,143.88,3.31602749]
[1768662120313,4.75810085,143.91,143.86,3.09065005]
[1768662121022,3.0261602,143.91,143.86,3.09065005]
[1768662121225,4.75810085,143.91,143.86,3.09065005]
[1768662122715,4.75810085,143.91,143.84,3.09065005]
[1768662123523,4.7585103,143.91,143.84,3.09065005]
[1768662124321,3.0261602,143.91,143.84,3.09065005]
[1768662124622,4.7585103,143.91,143.84,9.34965005]
[1768662125924,4.7585103,143.91,143.85,3.09065005]
[1768662126921,1.7323501,143.89,143.83,3.09065005]
[1768662127225,3.0261602,143.88,143.83,3.09065005]
[1768662127724,3.0261602,143.88,143.83,9.35005005]
[1768662133125,6.2561,143.91,143.84,3.09065005]
[1768662133330,1.7323501,143.9,143.84,3.09065005]
[1768662133926,4.7585103,143.9,143.84,3.09065005]
[1768662134130,3.0261602,143.89,143.84,3.09065005]
[1768662135132,9.2822602,143.91,143.84,3.09065005]
[1768662135429,11.0146103,143.91,143.84,3.09065005]
[1768662135825,3.0261602,143.9,143.84,3.09065005]
[1768662139946,3.0261602,143.9,143.85,3.09065005]
[1768662140134,7.9884501,143.91,143.85,3.09065005]
[1768662140539,1.7323501,143.91,143.85,3.09065005]
[1768662141036,3.0261602,143.92,143.86,3.09065005]
[1768662142838,3.0261602,143.92,143.86,9.34875005]
[1768662144444,1.7323501,143.91,143.82,3.19250357]
[1768662144749,4.89169334,143.91,143.82,3.19250357]
[1768662145742,4.89169334,143.91,143.84,6.2588]
[1768662145948,4.89169334,143.91,143.84,9.45130357]
[1768662149646,4.89169334,143.91,143.85,3.19250357]
[1768662151249,3.15934324,143.91,143.85,3.19250357]
[1768662151454,1.7323501,143.91,143.85,3.19250357]
[1768662153748,7.9886501,143.91,143.85,3.19250357]
[1768662153948,1.7323501,143.89,143.81,3.07042984]
[1768662156252,9.27636101,143.9,143.81,3.07042984]
[1768662156453,1.7323501,143.89,143.81,3.07042984]
[1768662157250,1.7323501,143.87,143.81,3.07042984]
[1768662157457,4.75211111,143.87,143.81,3.07042984]
[1768662157752,3.01976101,143.87,143.81,3.07042984]
[1768662157951,4.75211111,143.87,143.81,3.07042984]
[1768662158952,3.01976101,143.87,143.81,3.07042984]
[1768662162154,1.7323501,143.86,143.81,3.07042984]
[1768662165358,4.75211111,143.86,143.79,3.07042984]
[1768662168461,3.01976101,143.86,143.79,3.07042984]
[1768662168865,1.7323501,143.87,143.79,3.07042984]
[1768662169156,4.75211111,143.88,143.8,3.07042984]
[1768662169859,3.01976101,143.88,143.8,3.07042984]
[1768662170061,4.75211111,143.88,143.8,3.07042984]
[1768662174967,3.01976101,143.88,143.8,3.07042984]
[1768662178172,3.16366963,143.86,143.8,3.07042984]
[1768662183274,4.89722558,143.86,143.8,3.07042984]
[1768662183573,3.16366963,143.86,143.8,3.07042984]
[1768662183775,4.89722558,143.86,143.8,3.07042984]
[1768662185481,3.16366963,143.85,143.8,3.07042984]
[1768662187973,3.16366963,143.85,143.78,3.12053671]
[1768662194871,3.16366963,143.84,143.78,3.12053671]
[1768662206586,3.16366963,143.84,143.77,130.96009238]
[1768662206781,3.16366963,143.84,143.76,265.97770949]
[1768662208188,3.16366963,143.84,143.77,3.19770949]
[1768662212292,3.07077623,143.83,143.77,3.19770949]
[1768662220703,3.13238992,143.86,143.77,3.19770949]
[1768662220895,8.79622581,143.85,143.77,3.19770949]
[1768662221094,3.13238992,143.85,143.77,3.19770949]
[1768662221901,3.13238992,143.85,143.79,6.2609]
[1768662226897,3.13238992,143.85,143.8,3.07078388]
[1768662227402,3.13238992,143.87,143.8,3.07078388]
[1768662227603,5.66710396,143.86,143.8,3.07078388]
[1768662227791,3.13238992,143.87,143.81,6.2602]
[1768662227994,5.66718444,143.86,143.81,6.2602]
[1768662228199,3.13238992,143.87,143.81,6.2602]
[1768662228395,5.66761074,143.86,143.81,6.2602]
[1768662228695,3.13238992,143.87,143.81,6.2602]
[1768662228895,5.66709793,143.86,143.81,6.2602]
[1768662229102,3.13238992,143.87,143.81,6.2602]
[1768662229290,5.66668829,143.86,143.81,6.2602]
[1768662229495,3.13238992,143.87,143.81,6.2602]
[1768662229695,5.6663855,143.86,143.81,6.2602]
[1768662229901,3.13238992,143.87,143.81,6.2602]
[1768662230102,5.6663855,143.86,143.81,6.2602]
[1768662230303,3.13238992,143.87,143.81,6.2602]
[1768662230499,5.66686395,143.86,143.81,6.2602]
[1768662230701,3.13238992,143.87,143.81,6.2602]
[1768662230901,5.66686011,143.86,143.81,6.2602]
[1768662231103,3.13238992,143.87,143.81,6.2602]
[1768662231299,5.66686011,143.86,143.81,6.2602]
[1768662231500,3.13238992,143.87,143.81,6.2602]
[1768662231501,5.66686011,143.85,143.81,6.2602]
[1768662231700,3.13238992,143.87,143.81,6.2602]
[1768662231900,5.66684415,143.86,143.81,9.54997965]
[1768662232205,3.13238992,143.87,143.81,9.54997965]
[1768662232397,5.66755894,143.86,143.81,9.54997965]
[1768662232598,3.13238992,143.87,143.81,9.54997965]
[1768662232796,5.66757446,143.86,143.81,9.54997965]
[1768662233004,3.13238992,143.87,143.81,9.54997965]
[1768662233204,5.66757446,143.86,143.81,9.54997965]
[1768662233407,3.13238992,143.87,143.81,9.54997965]
[1768662233605,5.66799943,143.86,143.81,9.54997965]
[1768662233801,3.13238992,143.87,143.81,9.54997965]
[1768662234004,8.76192782,143.86,143.81,9.54997965]
[1768662234204,3.09398421,143.86,143.81,9.54997965]
[1768662235411,3.09398421,143.86,143.81,3.28977965]
[1768662235607,5.66805149,143.85,143.81,3.28977965]
[1768662235804,3.09398421,143.86,143.81,3.28977965]
[1768662236004,5.66804886,143.85,143.81,3.28977965]
[1768662236204,3.09398421,143.86,143.81,3.28977965]
[1768662236405,5.66801091,143.85,143.81,3.28977965]
[1768662236606,3.09398421,143.86,143.81,3.28977965]
[1768662236901,5.66801091,143.85,143.81,3.28977965]
[1768662237210,3.09398421,143.86,143.81,3.28977965]
[1768662237412,5.66797328,143.85,143.81,3.28977965]
[1768662237604,3.09398421,143.86,143.81,3.28977965]
[1768662237804,5.66797328,143.85,143.81,3.28977965]
[1768662238005,3.09398421,143.86,143.81,3.28977965]
[1768662238304,5.66797328,143.85,143.81,3.28977965]
[1768662238509,3.09398421,143.86,143.81,3.28977965]
[1768662238705,5.6679281,143.85,143.81,3.28977965]
[1768662238907,3.09398421,143.86,143.81,3.28977965]
[1768662239102,3.09398421,143.84,143.79,9.55077965]
[1768662241316,3.09398421,143.84,143.79,6.261]
[1768662241517,3.09398421,143.84,143.77,3.28977965]
[1768662241708,8.76041192,143.83,143.77,3.28977965]
[1768662242018,3.09398421,143.83,143.77,3.28977965]
[1768662242915,3.09398421,143.83,143.77,9.55157965]
[1768662250521,3.09398421,143.83,143.78,3.28977965]
[1768662253317,3.09398421,143.86,143.8,3.28977965]
[1768662253518,8.77328787,143.85,143.8,3.28977965]
[1768662253715,5.67930366,143.84,143.8,3.28977965]
[1768662253915,5.67930366,143.84,143.77,3.28977965]
[1768662255027,5.67930366,143.84,143.78,9.55127965]
[1768662257120,5.67930366,143.84,143.79,6.2612]
[1768662257322,5.67930366,143.84,143.79,9.55097965]
[1768662261029,3.09398421,143.85,143.79,9.55097965]
[1768662261425,5.67783241,143.84,143.79,9.55097965]
[1768662261725,3.09398421,143.85,143.79,9.55097965]
[1768662261920,5.67756761,143.84,143.79,9.55097965]
[1768662262120,3.09398421,143.85,143.79,9.55097965]
[1768662262320,5.67762806,143.84,143.79,9.55097965]
[1768662262521,3.09398421,143.85,143.79,9.55097965]
[1768662262819,5.67761194,143.84,143.79,9.55097965]
[1768662263019,3.09398421,143.85,143.79,9.55097965]
[1768662263227,5.67708491,143.84,143.79,9.55097965]
[1768662263416,3.09398421,143.85,143.79,9.55097965]
[1768662263626,5.67681049,143.84,143.79,9.55097965]
[1768662263824,3.09398421,143.85,143.79,9.55097965]
[1768662264023,5.67679187,143.84,143.79,9.55097965]
[1768662264231,3.09398421,143.85,143.79,9.55097965]
[1768662264426,5.67675319,143.84,143.79,9.55097965]
[1768662264625,3.09398421,143.85,143.79,9.55097965]
[1768662264825,5.67675319,143.84,143.79,9.55097965]
[1768662265026,3.09398421,143.85,143.79,9.55097965]
[1768662265230,5.67674934,143.84,143.79,9.55097965]
[1768662265425,3.09398421,143.85,143.79,9.55097965]
[1768662265626,5.67685233,143.84,143.79,9.55097965]
[1768662265824,3.09398421,143.85,143.79,9.55097965]
[1768662266026,5.67690662,143.84,143.79,9.55097965]
[1768662266225,3.09398421,143.85,143.79,9.55097965]
[1768662266431,5.67695329,143.84,143.79,9.55097965]
[1768662266627,3.09398421,143.85,143.79,9.55097965]
[1768662266827,5.67690285,143.84,143.79,3.28977965]
[1768662267028,3.09398421,143.85,143.79,3.28977965]
[1768662267228,5.67687879,143.84,143.79,3.28977965]
[1768662267429,3.09398421,143.85,143.79,3.28977965]
[1768662267729,5.6768301,143.84,143.79,3.28977965]
[1768662267926,3.09398421,143.85,143.79,3.28977965]
[1768662268126,5.6768301,143.84,143.79,3.28977965]
[1768662268326,3.09398421,143.85,143.79,3.28977965]
[1768662268526,5.67680831,143.84,143.79,3.28977965]
[1768662268728,3.09398421,143.85,143.79,3.28977965]
[1768662268925,5.67680831,143.84,143.79,3.28977965]
[1768662269125,3.09398421,143.85,143.79,3.28977965]
[1768662269328,5.67689767,143.84,143.79,3.28977965]
[1768662269528,3.09398421,143.85,143.79,3.28977965]
[1768662269729,5.67680346,143.84,143.79,3.28977965]
[1768662270027,3.09398421,143.85,143.79,3.28977965]
[1768662270227,5.67682367,143.84,143.79,3.28977965]
[1768662270426,3.09398421,143.85,143.79,3.28977965]
[1768662270627,5.67679364,143.84,143.79,3.28977965]
[1768662270827,3.09398421,143.85,143.79,3.28977965]
[1768662271026,5.67679364,143.84,143.79,3.28977965]
[1768662271228,3.09398421,143.85,143.79,3.28977965]
[1768662271525,5.67677816,143.84,143.79,3.28977965]
[1768662271734,3.09398421,143.85,143.79,3.28977965]
[1768662271930,5.6768363,143.84,143.79,3.28977965]
[1768662272137,3.09398421,143.85,143.79,3.28977965]
[1768662272337,5.67695802,143.84,143.79,3.28977965]
[1768662272534,3.09398421,143.85,143.79,3.28977965]
[1768662272727,5.67684089,143.84,143.79,3.28977965]
[1768662273034,3.09398421,143.85,143.79,3.28977965]
[1768662273236,8.98407296,143.84,143.79,3.28977965]
[1768662273425,3.30728636,143.84,143.79,3.28977965]
[1768662281241,5.6853313,143.83,143.79,3.28977965]
[1768662281435,3.30728636,143.84,143.79,3.28977965]
[1768662281630,10.72638163,143.83,143.77,3.00045761]
[1768662281834,5.6852088,143.82,143.77,3.00045761]